Cogmind - Beta 16 @@@ ROGUE MODE // 2025.12.10 @ 16:04:06 Player: Mozco Result: Destroyed by as-14077 with Assembled Gauss Rifle Performance ------------- Evolutions (4) 2000 Regions Visited (17) 3400 Robots Destroyed (171) 855 Value Destroyed (5717) 5717 Prototype IDs (66) 1320 Alien Tech Used (1) 200 Bonus (645) 645 TOTAL SCORE: 14137 Bonus ------- High Alert Combat Kills 28 Follower Combat Kills 101 Aligned with FarCom 300 Met Data Miner 300 Met Imprinter 300 Triggered Deep Caves Wall 500 Exposed GOLEM Chamber 500 Friendly Fire -1384 Cogmind --------- Core Integrity 0/850 Matter 130/300 Energy 100/100 System Corruption 12% Temperature Cool (20) Movement Core (100) Ox1 Location -6/Deep Caves Parts ------- > --- POWER (2) -------- (None) > --- PROPULSION (2) --- (None) > --- UTILITY (10) ----- (None) > --- WEAPON (2) ------- Shock Bomb Launcher > --- INVENTORY (5) ---- Zionite Weapon Casing 8R-AWN's Boregun Peak State ------------ > --- POWER ------------ Zionite Light DM Reactor Zionite Light DM Reactor > --- PROPULSION ------- Zionite Glidesys I Zionite Glidesys I > --- UTILITY ---------- Zionite Biocell Zionite Weapon Casing Zionite Light Carapace Zionite Light Carapace Zionite Light Carapace Zionite Heavy Carapace 8R-AWN's Armor/EX > --- WEAPON ----------- 8R-AWN's Boregun 8R-AWN's Boregun > --- INVENTORY -------- Zionite Weapon Casing Shock Bomb Launcher [Rating: 120] Favorites ----------- Power Cold Fusion Reactor Engine Light Deuterium Engine Power Core Light Nuclear Core Reactor Cold Fusion Reactor Propulsion Wheel Wheel Wheel Hover Unit Zionite Glidesys I Utility Improved Signal Interpreter Device Improved Force Field Storage High-capacity Storage Unit Processor Improved Signal Interpreter Hackware Hacking Suite Protection Medium Reactive Plating Weapon 8R-AWN's Boregun Energy Gun Shock Rifle Energy Cannon Proton Cannon Ballistic Gun 8R-AWN's Boregun Launcher Heavy Missile Launcher Slashing Weapon Makeshift Sword Special Melee Weapon Datajack Build | -11 -10 -10 -9 -9 -9 -8 -8 -7 -7 -7 -7 -6 -6 -6 -6 -6 -6 ------- Run | Yrd Mat Min Mat Min Exi Min Mat Fac Low Low Dat Pro Fac Low Low Zio Dee Slots Evolved 8 | . . . 2 . . . 2 2 . . . . 2 . . . . Power . | . . . . . . . . . . . . . . . . . . Propulsion . | . . . . . . . . . . . . . . . . . . Utility 8 | . . . 2 . . . 2 2 . . . . 2 . . . . Weapon . | . . . . . . . . . . . . . . . . . . Parts Attached 102 | 6 8 2 15 . 11 3 9 9 1 . . 2 5 4 3 6 18 Power 13 | 1 2 . 2 . 2 . . . . . . 1 1 . 1 1 2 Engine 9 | 1 2 . 1 . 1 . . . . . . 1 1 . 1 1 . Core 1 | . . . 1 . . . . . . . . . . . . . . Reactor 3 | . . . . . 1 . . . . . . . . . . . 2 Propulsion 12 | 2 1 1 . . 1 . 4 . . . . . 1 . . . 2 Treads . | . . . . . . . . . . . . . . . . . . Leg . | . . . . . . . . . . . . . . . . . . Wheel 10 | 2 1 1 . . 1 . 4 . . . . . 1 . . . . Hover 2 | . . . . . . . . . . . . . . . . . 2 Flight . | . . . . . . . . . . . . . . . . . . Utility 52 | 1 2 1 6 . 4 3 4 8 1 . . 1 3 1 2 4 11 Device 21 | . . . 4 . 2 2 1 5 . . . 1 2 1 1 1 1 Storage 7 | 1 1 . . . 1 . 1 1 . . . . . . . 1 1 Processor 5 | . . . . . . 1 1 1 . . . . 1 . 1 . . Hackware 1 | . . . 1 . . . . . . . . . . . . . . Protection 18 | . 1 1 1 . 1 . 1 1 1 . . . . . . 2 9 Artifact . | . . . . . . . . . . . . . . . . . . Weapon 25 | 2 3 . 7 . 4 . 1 1 . . . . . 3 . 1 3 Energy Gun 7 | 1 1 . 2 . 2 . 1 . . . . . . . . . . Energy Cannon 3 | . . . . . . . . . . . . . . 1 . . 2 Ballistic Gun 8 | 1 1 . 3 . 2 . . . . . . . . 1 . . . Ballistic Cannon . | . . . . . . . . . . . . . . . . . . Launcher 5 | . 1 . 1 . . . . 1 . . . . . 1 . . 1 Special Weapon . | . . . . . . . . . . . . . . . . . . Impact Weapon . | . . . . . . . . . . . . . . . . . . Slashing Weapon 1 | . . . . . . . . . . . . . . . . 1 . Piercing Weapon . | . . . . . . . . . . . . . . . . . . Special Melee Weapon 1 | . . . 1 . . . . . . . . . . . . . . Unidentified Prototypes 11 | . . . 2 . . . . . . 1 . . . . . 2 6 Corrupted Parts 3 | . . . . . . 3 . . . . . . . . . . . System Corruption 16 | . . . . . . 16 . . . . . . . . . . . Parts Lost 37 | . 3 1 . . . . 4 . . . . . 6 . . . 23 Power 5 | . . . . . . . . . . . . . 1 . . . 4 Propulsion 6 | . 1 1 . . . . . . . . . . 1 . . . 3 Utility 19 | . . . . . . . 3 . . . . . 2 . . . 14 Weapon 7 | . 2 . . . . . 1 . . . . . 2 . . . 2 Highest Loss Streak 12 | . 1 1 . . . . 3 . . . . . 6 . . . 12 To Critical Strikes . | . . . . . . . . . . . . . . . . . . Average Backups 15 | . 10 14 14 15 15 21 16 14 15 15 14 15 13 17 17 17 12 Power . | . . 1 . 1 1 1 . . . . . . . 1 1 . . Propulsion . | . 1 1 1 1 . . 1 . 1 1 1 1 . . . . . Utility 9 | . 4 9 8 7 8 16 11 11 11 11 11 11 8 8 8 8 6 Weapon 4 | . 3 2 3 5 4 4 2 2 3 3 2 3 2 7 7 7 4 Tool/Special . | . . . . . . . . . . . . . . . . . . Unused Backups 30 | . 3 3 4 . 8 . . 3 . . . . . . 1 2 6 Power 5 | . . . 1 . 4 . . . . . . . . . . . . Propulsion 1 | . . . . . . . . . . . . . . . . . 1 Utility 18 | . 3 2 3 . 4 . . . . . . . . . . 1 5 Weapon 5 | . . 1 . . . . . 3 . . . . . . 1 . . Tool/Special 1 | . . . . . . . . . . . . . . . . 1 . Average Slot Usage (%) 91 | . 89 99 98 100 93 88 83 85 99 93 80 94 87 90 92 92 80 Engine 5 | . 14 14 8 11 7 11 6 . . . . 5 4 6 6 6 3 Reactor 4 | . . . . . 3 . 2 7 7 7 7 7 5 6 6 6 7 Wheel 14 | . 27 27 22 22 22 22 17 15 15 14 14 14 7 6 6 6 3 Device 19 | . . . 12 11 9 10 11 19 30 28 28 25 31 34 35 30 17 Storage 7 | . 14 14 11 11 9 11 8 7 7 7 7 7 6 6 6 6 5 Processor 9 | . . . . . . . 10 12 15 14 14 14 13 12 13 18 10 Protection 10 | . 5 14 13 22 19 11 8 6 6 6 7 6 4 6 6 6 18 Energy Gun 4 | . 10 . 4 . 9 11 16 10 4 1 1 8 1 . . . . Ballistic Gun 6 | . 7 14 11 11 8 . . 4 6 10 . 2 8 9 5 2 8 Launcher 3 | . 8 14 4 11 2 11 1 . 4 1 1 3 1 1 6 5 . Peak Build Rating 120 | 6 10 13 22 21 45 42 70 84 78 78 66 94 100 105 95 109 120 Average Rating 62 | 4 8 11 19 21 28 37 52 75 70 75 59 72 89 97 93 95 97 On Entrance 51 | . 6 10 13 21 21 37 40 66 65 66 73 66 69 88 92 95 107 Avg Prop Armor Cover (%) . | . . . . . . . . . . . . . . . . . . Naked Turns 59 | . . . . . . . . . . . . . . . . . 59 Heaviest Build 119 | 12 29 30 40 38 74 59 75 91 100 101 98 103 107 112 112 119 119 Greatest Support 32 | 26 26 26 26 26 32 32 32 20 20 20 20 20 28 28 28 28 28 Greatest Overweight (x) 7 | . 1 1 1 1 2 1 2 4 4 5 4 5 5 3 3 4 7 Average Overweight (x) 2 | . . 1 1 1 1 1 1 2 4 4 4 4 3 3 3 3 2 Largest Inventory Capacity 25 | 8 15 15 15 15 25 25 25 20 20 20 20 20 20 20 20 20 20 Average Capacity 18 | 7 12 15 15 15 18 25 19 17 20 20 20 20 20 20 20 20 14 Most Carried 25 | 2 15 15 15 15 25 25 25 20 20 20 20 20 20 20 20 20 20 Average Carried 17 | . 10 14 14 15 16 25 19 17 20 19 19 19 15 19 19 19 13 Final Capacity 25 | 8 15 15 15 15 25 25 15 20 20 20 20 20 20 20 20 20 5 Final Carried 25 | 2 15 15 15 15 25 25 15 20 20 20 20 20 19 20 20 20 2 Class Distribution -------------------- 53% | Mutant 46% | Scavenger-Mutant Dominant Class ---------------- Mutant | -10/Materials Mutant | -10/Mines Mutant | -9/Materials Mutant | -9/Mines Mutant | -9/Exiles Mutant | -8/Mines Mutant | -8/Materials Scavenger-Mutant | -7/Factory Mutant | -7/Lower Caves Mutant | -7/Lower Caves Mutant | -7/Data Miner Scavenger-Mutant | -6/Proximity Caves Scavenger-Mutant | -6/Factory Scavenger-Mutant | -6/Lower Caves Scavenger-Mutant | -6/Lower Caves Scavenger-Mutant | -6/Zion Scavenger-Mutant | -6/Deep Caves Resources | -11 -10 -10 -9 -9 -9 -8 -8 -7 -7 -7 -7 -6 -6 -6 -6 -6 -6 ----------- Run | Yrd Mat Min Mat Min Exi Min Mat Fac Low Low Dat Pro Fac Low Low Zio Dee Matter Collected 5620 | 226 328 180 400 20 857 . 262 134 224 200 . 569 537 335 180 488 680 Remotely . | . . . . . . . . . . . . . . . . . . Salvage Created 7600 | . 722 68 455 . 467 . 871 134 187 156 . 738 1091 350 104 718 1539 Parts 431 | . 43 8 37 . 75 . 56 4 9 18 . 28 47 20 2 43 41 Haulers Intercepted 6 | . 1 . 4 . . . . 1 . . . . . . . . . Recyclers Shooed 5 | . 1 1 1 . . . 1 . . . . . 1 . . . . Parts Field Recycled . | . . . . . . . . . . . . . . . . . . Retrieved Matter . | . . . . . . . . . . . . . . . . . . Parts Self-Destructed 68 | . . . . . . . . . 9 17 . 21 . 15 6 . . Prevented 6 | . . . . . . . . . . . . 5 . . 1 . . Parts Restored . | . . . . . . . . . . . . . . . . . . Kills | -11 -10 -10 -9 -9 -9 -8 -8 -7 -7 -7 -7 -6 -6 -6 -6 -6 -6 ------- Run | Yrd Mat Min Mat Min Exi Min Mat Fac Low Low Dat Pro Fac Low Low Zio Dee Combat Hostiles Destroyed 166 | . 16 7 4 . 6 . 19 1 3 8 . 18 12 11 7 7 47 Guns 61 | . 2 1 2 . . . 13 1 3 2 . 8 12 4 1 3 9 Cannons 2 | . . . . . . . . . . . . . . 1 . . 1 AOE 97 | . 14 6 2 . 5 . 5 . . 6 . 8 . 6 6 4 35 Classes Destroyed 23 | . 7 . 2 . 3 . 1 . 1 1 . 1 . 1 2 2 2 Worker 1 | . . . 1 . . . . . . . . . . . . . . Builder 5 | . 2 . 1 . . . 1 . . . . . 1 . . . . Hauler 6 | . 1 . 4 . . . . 1 . . . . . . . . . Recycler 5 | . 3 . 1 . . . . . . . . . 1 . . . . Operator 2 | . 2 . . . . . . . . . . . . . . . . Drone 2 | . . . . . . . . . . . . 2 . . . . . Turret 1 | . . . . . 1 . . . . . . . . . . . . Watcher 6 | . 2 . 1 . . . 2 . . . . . 1 . . . . Swarmer 36 | . 3 5 . . . . 6 . . 6 . 7 . 7 2 . . Grunt 52 | . 13 2 3 . . . 8 . 2 . . 8 10 3 3 . . Brawler 2 | . . . . . . . . . 1 . . 1 . . . . . Duelist 1 | . . . . . . . . . . . . . . . 1 . . Sentry 8 | . . . 1 . . . 4 1 . . . . 1 . 1 . . Hunter 1 | . . . . . . . 1 . . . . . . . . . . Programmer 3 | . . . . . . . . . . 2 . . 1 . . . . Enhanced Grunt 2 | . . . . . . . . . . . . . . . . 2 . Zionite 17 | . . . . . 8 . . . . . . . . . . 9 . Z-Light 7 | . . . . . . . . . . . . . . . . . 7 Samaritan 1 | . . . . . . . . . . . . . . . 1 . . Tinkerer 1 | . . . . . . . . . . . . . . . . 1 . Assembled 32 | . . . . . 5 . . . . . . . . . . . 27 Golem 13 | . . . . . . . . . . . . . . . . . 13 Thug 1 | . . . . . . . . . . . . . . . . 1 . Savage 2 | . . . . . . . . . . . . . . . . 2 . Fireman 1 | . . . . . . . . . . . . . . . . 1 . Mutant 5 | . . . . . . . . . . . . . . 1 . 4 . Best Kill Streak 24 | . 11 3 5 . 7 . 4 1 3 3 . 4 3 4 7 6 24 Combat Bots Only 24 | . 6 3 2 . 5 . 4 1 3 3 . 4 3 4 7 4 24 Max Kills in Single Turn 7 | . 3 2 3 . 2 . 2 1 1 2 . 3 2 2 3 3 7 Gunslinging 1 | . . . . . . . 1 . . . . . . . . . . Exploded 7 | . 3 2 1 . 2 . 2 . . 2 . 3 . 2 3 2 7 Melee . | . . . . . . . . . . . . . . . . . . Uniques/NPCs Destroyed 5 | . . . . . 4 . . . . . . . . . . 1 . EX-DEC (-9/Exiles) EX-HEX (-9/Exiles) EX-BIN (-9/Exiles) 8R-AWN (-9/Exiles) Imprinter (-6/Zion) Combat | -11 -10 -10 -9 -9 -9 -8 -8 -7 -7 -7 -7 -6 -6 -6 -6 -6 -6 -------- Run | Yrd Mat Min Mat Min Exi Min Mat Fac Low Low Dat Pro Fac Low Low Zio Dee Hostile Shots Fired 597 | . 21 18 10 . 27 . 74 . 1 16 . 57 137 17 5 17 197 Missed 152 | . 4 3 1 . 10 . 23 . 1 8 . 15 36 6 1 7 37 Hits 445 | . 17 15 9 . 17 . 51 . . 8 . 42 101 11 4 10 160 Melee 14 | . . . . . . . . . . . . . . . . 1 13 Projectile 431 | . 17 15 9 . 17 . 51 . . 8 . 42 101 11 4 9 147 Critical Strikes 11 | . . . . . . . . . . 1 . 2 4 . 1 1 2 Part Disruptions 5 | . . . . . . . . . . . . . 3 . . . 2 Actively Blocked 2 | . . . . . . . . . . . . . . . . . 2 Damage Taken 6176 | . 297 215 139 . 179 . 578 . . 50 . 143 739 78 26 88 3644 Core 1200 | . 72 83 35 . 41 . 88 . . 5 . 24 142 14 . 2 694 Absorbed by Shields 1134 | . . . 21 . 66 . 111 . . 55 . 113 253 87 28 92 308 Redirected to Shielding 508 | . . 18 34 . 20 . 66 . . . . . . . . . 370 Ignored by Resistances 2033 | . . . . . . . 83 . . 16 . 505 888 26 26 42 447 Regen/Repaired (Parts) 153 | . . . 40 . . . . . . . . . 113 . . . . Core Remaining (%) 79 | 100 . 38 . . . 81 84 . . . . 95 . . . . . Volleys Fired 592 | . 49 24 27 . 215 . 51 6 9 16 . 39 43 16 6 32 59 Largest 2 | . 2 1 2 . 2 . 2 2 2 2 . 2 2 2 2 2 2 Hottest 156 | . 60 30 68 . 100 . 100 60 60 60 . 100 100 90 82 82 156 Shots Fired 1014 | . 57 24 45 . 419 . 88 11 18 24 . 68 79 26 9 58 88 Gun 901 | . 36 17 42 . 413 . 87 11 18 19 . 58 79 20 3 44 54 Cannon 10 | . . . . . . . . . . . . . . 2 . . 8 Launcher 103 | . 21 7 3 . 6 . 1 . . 5 . 10 . 4 6 14 26 Special . | . . . . . . . . . . . . . . . . . . Kinetic 422 | . 15 17 28 . 97 . . 10 18 16 . 36 64 20 3 44 54 Thermal 2 | . . . . . . . . . . . . . . 2 . . . Explosive 96 | . 21 7 3 . 6 . 1 . . 5 . 10 . 4 6 14 19 Electromagnetic 494 | . 21 . 14 . 316 . 87 1 . 3 . 22 15 . . . 15 Robot Hit Streak 20 | . 5 3 7 . 13 . 14 5 2 5 . 20 14 4 4 6 14 Robot Miss Streak 6 | . 2 6 3 . 6 . 5 1 5 6 . 2 4 3 1 3 5 Penetration Max 2 | . . . . . 1 . . . . . . 1 1 1 . 1 2 Secondary Targets 11 | . . . . . 1 . 4 . . . . 1 1 . . 2 2 Max Gunslinging Chain 1 | . . . . . 1 . 1 . . . . 1 1 . . 1 1 Shots Hit Robots 542 | . 28 8 27 . 240 . 58 6 6 9 . 47 40 10 4 24 35 Core Hits 470 | . 37 9 17 . 59 . 32 3 3 10 . 24 28 14 18 39 177 Critical Kills 48 | . . . . . 2 . . 2 3 1 . 7 10 4 1 10 8 Critical Parts Destroyed 42 | . . . . . 9 . . 2 2 1 . 7 10 1 . 2 8 Critical Strikes 96 | . . . . . 12 . 2 4 5 2 . 15 20 5 1 12 18 Destroy 92 | . . . . . 11 . . 4 5 2 . 14 20 5 1 12 18 Corrupt 4 | . . . . . 1 . 2 . . . . 1 . . . . . Melee Attacks 6 | . . . . . 5 . . . . . . . . . . 1 . Impact . | . . . . . . . . . . . . . . . . . . Slashing 1 | . . . . . . . . . . . . . . . . 1 . Piercing . | . . . . . . . . . . . . . . . . . . Sneak Attacks 4 | . . . . . 4 . . . . . . . . . . . . Combat Hostiles . | . . . . . . . . . . . . . . . . . . Follow-up Attacks . | . . . . . . . . . . . . . . . . . . Damage Inflicted 18829 | . 1523 522 709 . 1422 . 1420 101 111 805 . 1485 862 866 1115 1484 6404 Guns 6449 | . 320 116 410 . 1120 . 1118 101 111 209 . 885 862 233 6 374 584 Cannons 222 | . . . . . . . . . . . . . . 32 . . 190 Explosions 12158 | . 1203 406 299 . 302 . 302 . . 596 . 600 . 601 1109 1110 5630 Melee . | . . . . . . . . . . . . . . . . . . Ramming . | . . . . . . . . . . . . . . . . . . Kinetic 4148 | . 141 116 269 . 911 . . 101 111 209 . 498 595 233 6 374 584 Thermal 301 | . 47 . 26 . 5 . 191 . . . . . . 32 . . . Explosive 11043 | . 1156 406 273 . 297 . 111 . . 596 . 600 . 601 1109 1110 4784 Electromagnetic 3337 | . 179 . 141 . 209 . 1118 . . . . 387 267 . . . 1036 Impact . | . . . . . . . . . . . . . . . . . . Slashing . | . . . . . . . . . . . . . . . . . . Piercing . | . . . . . . . . . . . . . . . . . . Highest Corruption 16 | . . . . . . 16 1 . . 3 3 3 1 1 1 1 12 Average Corruption 1 | . . . . . . 9 1 . . 2 3 2 1 1 1 1 7 Corruption Purged 3 | . . . . . . . . . . . . 3 . . . . . Corruption Blocked . | . . . . . . . . . . . . . . . . . . Effects 44 | . . . . . . 1 8 . . 12 3 6 . 6 7 . 1 Message Errors 15 | . . . . . . . 2 . . 4 2 3 . 2 2 . . Matter Fused 9 | . . . . . . 1 2 . . 2 1 . . 1 1 . 1 Heat Flow Errors 5 | . . . . . . . 2 . . . . 1 . . 2 . . Energy Discharges 2 | . . . . . . . . . . 1 . . . . 1 . . Parts Rejected 1 | . . . . . . . 1 . . . . . . . . . . Parts Fused 2 | . . . . . . . . . . 1 . . . 1 . . . Data Loss (minor) 5 | . . . . . . . 1 . . 1 . 1 . 1 1 . . Misfires 2 | . . . . . . . . . . 1 . 1 . . . . . Alerts 2 | . . . . . . . . . . 1 . . . 1 . . . Weapon Failures 1 | . . . . . . . . . . 1 . . . . . . . Overload Shots . | . . . . . . . . . . . . . . . . . . Overflow Damage 453 | . 80 18 . . 14 . . . . 18 . 48 . 21 101 51 102 Projectiles . | . . . . . . . . . . . . . . . . . . Explosions 453 | . 80 18 . . 14 . . . . 18 . 48 . 21 101 51 102 Melee . | . . . . . . . . . . . . . . . . . . Knockbacks . | . . . . . . . . . . . . . . . . . . Impact . | . . . . . . . . . . . . . . . . . . Kinetic . | . . . . . . . . . . . . . . . . . . Secondary . | . . . . . . . . . . . . . . . . . . Self-Inflicted Damage 354 | . 116 38 28 . . . 67 . . . . 20 . . . . 85 Shots 17 | . 5 1 1 . . . 2 . . . . 1 . . . . 7 Rammed . | . . . . . . . . . . . . . . . . . . Targets Rammed . | . . . . . . . . . . . . . . . . . . Kicked . | . . . . . . . . . . . . . . . . . . Crushed . | . . . . . . . . . . . . . . . . . . Highest Temperature 390 | . 12 10 8 . 219 . 390 . . . . 218 36 64 246 120 151 Average Temperature 56 | . 3 6 1 . 51 . 89 . . . . 114 13 21 74 37 51 Received Heat Transfer 1309 | . 78 24 27 . 6 . 207 . . . . 30 339 16 . 8 574 Effects 2 | . . . . . . . 2 . . . . . . . . . . Shutdowns 1 | . . . . . . . 1 . . . . . . . . . . Interference 1 | . . . . . . . 1 . . . . . . . . . . Siege Activations . | . . . . . . . . . . . . . . . . . . Martial Activations . | . . . . . . . . . . . . . . . . . . Shielding Activations . | . . . . . . . . . . . . . . . . . . Robots Disrupted . | . . . . . . . . . . . . . . . . . . Combat Hostiles . | . . . . . . . . . . . . . . . . . . Robots Corrupted 6 | . . . . . 1 . 1 . . . . 2 . . . . 2 Combat Hostiles 6 | . . . . . 1 . 1 . . . . 2 . . . . 2 Parts Fried 11 | . . . 1 . 2 . 6 . . . . 2 . . . . . Impact Corruptions . | . . . . . . . . . . . . . . . . . . Robots Melted . | . . . . . . . . . . . . . . . . . . Combat Hostiles . | . . . . . . . . . . . . . . . . . . Parts Melted 1 | . . . . . . . . . . . . . 1 . . . . Heat Transferred 412 | . 100 . . . 12 . 250 . . . . . . 50 . . . Parts Sabotaged . | . . . . . . . . . . . . . . . . . . Parts Stolen . | . . . . . . . . . . . . . . . . . . Parts Stripped . | . . . . . . . . . . . . . . . . . . Power Chain Reactions 6 | . 2 . 1 . 1 . 2 . . . . . . . . . . Alert | -11 -10 -10 -9 -9 -9 -8 -8 -7 -7 -7 -7 -6 -6 -6 -6 -6 -6 ------- Run | Yrd Mat Min Mat Min Exi Min Mat Fac Low Low Dat Pro Fac Low Low Zio Dee Maximum Alert Level 2 | . 2 1 . . . . 1 . . . . . 2 . . . . Low Security (%) 70 | 100 40 93 100 100 . 100 42 100 . . . . 5 . . . . Level 1 27 | . 42 6 . . . . 57 . . . . . 89 . . . . Level 2 2 | . 17 . . . . . . . . . . . 4 . . . . Level 3 . | . . . . . . . . . . . . . . . . . . Level 4 . | . . . . . . . . . . . . . . . . . . Level 5 . | . . . . . . . . . . . . . . . . . . High Security . | . . . . . . . . . . . . . . . . . . Max Security . | . . . . . . . . . . . . . . . . . . Peak Influence 416 | . 416 221 137 6 . 12 288 107 . . . . 403 . . . . Initial 238 | . . 151 35 6 . . . 95 . . . . 238 . . . . Average 118 | . 256 68 24 2 . 1 182 26 . . . . 310 . . . . Influence Increases 3585 | . 614 218 262 . . 12 608 109 85 200 . 410 662 230 175 . . Destroy 0b10 Robot/C 2080 | . 320 140 80 . . . 380 20 60 160 . 320 240 200 160 . . Destroy 0b10 Robot/NC 135 | . 50 . 40 . . . 15 5 . . . 10 15 . . . . Destroy Leader 454 | . 86 20 40 . . . 104 12 10 40 . 50 52 30 10 . . Allied During Kill 5 | . . . . . . . . . . . . . . . 5 . . Successful Hack 196 | . 11 . 35 . . 12 33 57 . . . . 48 . . . . Select Force Hacks 30 | . 30 . . . . . . . . . . . . . . . . Disable Machine 180 | . 45 15 30 . . . 30 15 . . . . 45 . . . . Destroy Structure 175 | . 72 43 37 . . . 16 . . . . . 7 . . . . Advance Influence 150 | . . . . . . . . . . . . . 150 . . . . Partial Spotted 30 | . . . . . . . . . . . . . 30 . . . . Lose Combat Pursuer 150 | . . . . . . . 30 . 15 . . 30 75 . . . . Influence Decreases 3585 | . 224 515 337 18 . 12 398 319 85 142 58 270 462 460 200 85 . Entered New Map 766 | . . 239 58 12 . . . 115 . . 58 . 52 126 21 85 . Time Decay 2669 | . 194 266 279 6 . 12 358 204 85 142 . 260 350 334 179 . . Lost Part 140 | . 30 10 . . . . 40 . . . . . 60 . . . . Lost Ally 10 | . . . . . . . . . . . . 10 . . . . . Squads Dispatched 22 | . 6 . 4 . . . 3 4 . . . . 5 . . . . Investigation 9 | . 4 . 1 . . . 1 2 . . . . 1 . . . . Extermination 3 | . . . . . . . . 1 . . . . 2 . . . . Reinforcement 10 | . 2 . 3 . . . 2 1 . . . . 2 . . . . Assault . | . . . . . . . . . . . . . . . . . . Garrison . | . . . . . . . . . . . . . . . . . . Intercept . | . . . . . . . . . . . . . . . . . . Searches Triggered . | . . . . . . . . . . . . . . . . . . Data Miner Redirects 1 | . . . . . . . . . . . . . 1 . . . . Construction Impeded 1 | . . . . . . . 1 . . . . . . . . . . Haulers Reinforced 1 | . . . . . . . . 1 . . . . . . . . . Active Scanning Responses . | . . . . . . . . . . . . . . . . . . Cargo Convoy Interrupts . | . . . . . . . . . . . . . . . . . . Stealth | -11 -10 -10 -9 -9 -9 -8 -8 -7 -7 -7 -7 -6 -6 -6 -6 -6 -6 --------- Run | Yrd Mat Min Mat Min Exi Min Mat Fac Low Low Dat Pro Fac Low Low Zio Dee Distress Signals 6 | . 1 . 2 . . . 3 . . . . . . . . . . Communications Jammed 5 | . . . . . . . 4 . . . . 1 . . . . . Distress Signals 4 | . . . . . . . 4 . . . . . . . . . . Times Spotted 278 | . 24 6 13 . 18 . 26 3 6 8 . 20 19 8 4 28 95 Peak Tracking Total 36 | . 4 2 2 . 9 . 5 1 4 3 . 4 7 3 4 5 36 Tactical Retreats 13 | . . . . . 3 . 1 . 1 . . 2 3 . . . 3 Traps | -11 -10 -10 -9 -9 -9 -8 -8 -7 -7 -7 -7 -6 -6 -6 -6 -6 -6 ------- Run | Yrd Mat Min Mat Min Exi Min Mat Fac Low Low Dat Pro Fac Low Low Zio Dee Traps Triggered 6 | . 2 1 1 . . . 1 . . . . . 1 . . . . Indirectly . | . . . . . . . . . . . . . . . . . . Trap Hack Attempts 43 | . . . 43 . . . . . . . . . . . . . . Triggered . | . . . . . . . . . . . . . . . . . . Disarmed 1 | . . . 1 . . . . . . . . . . . . . . Reprogrammed 7 | . . . 7 . . . . . . . . . . . . . . Reused 4 | . . . . . 4 . . . . . . . . . . . . Traps Extracted 7 | . . . 7 . . . . . . . . . . . . . . Installed 7 | . . . 3 . 4 . . . . . . . . . . . . Triggered . | . . . . . . . . . . . . . . . . . . Most Traps Carried 4 | . . . 4 4 4 . . . . . . . . . . . . Machines | -11 -10 -10 -9 -9 -9 -8 -8 -7 -7 -7 -7 -6 -6 -6 -6 -6 -6 ---------- Run | Yrd Mat Min Mat Min Exi Min Mat Fac Low Low Dat Pro Fac Low Low Zio Dee Machines Disabled 48 | . 4 1 2 . 29 . 2 1 . . . . 3 1 1 1 3 Max in Single Turn 2 | . 1 1 1 . 2 . 1 1 . . . . 1 1 1 . 1 Garrison Access 1 | . . . . . . . . 1 . . . . . . . . . Machines Repaired . | . . . . . . . . . . . . . . . . . . Machines Dismantled . | . . . . . . . . . . . . . . . . . . Machines Sabotaged . | . . . . . . . . . . . . . . . . . . Overloaded Fab Kills . | . . . . . . . . . . . . . . . . . . Hacking | -11 -10 -10 -9 -9 -9 -8 -8 -7 -7 -7 -7 -6 -6 -6 -6 -6 -6 --------- Run | Yrd Mat Min Mat Min Exi Min Mat Fac Low Low Dat Pro Fac Low Low Zio Dee Machines Accessed 40 | . 5 1 6 . 2 1 6 9 . 1 3 . 5 . 1 . . Terminals 20 | . 4 . 4 . . 1 5 4 . . . . 2 . . . . Fabricators 2 | . . . . . . . . 1 . . . . 1 . . . . Repair Stations 3 | . . . 1 . . . . 1 . . . . 1 . . . . Recycling Units 3 | . 1 . . . . . . 1 . . . . 1 . . . . Scanalyzers 3 | . . . 1 . . . 1 1 . . . . . . . . . Garrison Access 1 | . . . . . . . . 1 . . . . . . . . . Total Hacks 130 | . 17 1 21 . 2 2 28 23 . 1 20 . 14 . 1 . . Successful 82 | . 6 1 14 . 2 2 17 11 . 1 20 . 7 . 1 . . Failed 46 | . 10 . 6 . . . 11 12 . . . . 7 . . . . Catastrophic 3 | . . . . . . . 1 2 . . . . . . . . . Database Lockouts 2 | . 1 . 1 . . . . . . . . . . . . . . Manual 61 | . 16 . 9 . 1 1 17 10 . . . . 1 . . 6 . Terminals 77 | . 15 . 17 . . 2 21 15 . . . . 7 . . . . Fabricators 6 | . . . . . . . . 3 . . . . 3 . . . . Repair Stations 5 | . . . 2 . . . . 1 . . . . 2 . . . . Recycling Units 5 | . 2 . . . . . . 1 . . . . 2 . . . . Scanalyzers 10 | . . . 2 . . . 7 1 . . . . . . . . . Garrison Access 2 | . . . . . . . . 2 . . . . . . . . . Terminal Hacks 50 | . 3 1 7 . 2 2 9 2 . 1 20 . 2 . 1 . . Record 3 | . . . . . 1 . . . . . 2 . . . . . . Part Schematic 12 | . . . . . . . 2 . . . 10 . . . . . . Robot Schematic 5 | . . . . . . . . . . . 5 . . . . . . Robot Analysis 6 | . 3 . . . . 1 2 . . . . . . . . . . Prototype ID Bank 7 | . . . 1 . . . 2 . . . 3 . 1 . . . . Open Door 3 | . . 1 . . . . . . . 1 . . . . 1 . . Level Access Points 1 | . . . . . . . 1 . . . . . . . . . . Branch Access Points 3 | . . . 1 . . . . 1 . . . . 1 . . . . Emergency Access Points 1 | . . . 1 . . . . . . . . . . . . . . Terminal Index 1 | . . . . . . . 1 . . . . . . . . . . Locate Traps 2 | . . . 1 . . . . 1 . . . . . . . . . Registered Components 1 | . . . 1 . . . . . . . . . . . . . . Zone Layout 4 | . . . 2 . . 1 1 . . . . . . . . . . Proto ID Catalog 1 | . . . . . 1 . . . . . . . . . . . . Fabricator Hacks 3 | . . . . . . . . 2 . . . . 1 . . . . Load Schematic 2 | . . . . . . . . 1 . . . . 1 . . . . Build 1 | . . . . . . . . 1 . . . . . . . . . Repair Station Hacks 4 | . . . 2 . . . . . . . . . 2 . . . . Scan Component 2 | . . . 1 . . . . . . . . . 1 . . . . Repair 2 | . . . 1 . . . . . . . . . 1 . . . . Recycling Unit Hacks 3 | . 1 . . . . . . 1 . . . . 1 . . . . Process 1 | . 1 . . . . . . . . . . . . . . . . Retrieve Components 2 | . . . . . . . . 1 . . . . 1 . . . . Scanalyzer 7 | . . . 1 . . . 5 1 . . . . . . . . . Insert Component 2 | . . . . . . . 2 . . . . . . . . . . Analyze 3 | . . . . . . . 3 . . . . . . . . . . Retrieve Study 2 | . . . 1 . . . . 1 . . . . . . . . . Garrison Access Hacks 1 | . . . . . . . . 1 . . . . . . . . . Seal Access 1 | . . . . . . . . 1 . . . . . . . . . Unauthorized Hacks 14 | . 2 . 4 . . . 3 4 . . . . 1 . . . . Terminals 12 | . 1 . 4 . . . 3 3 . . . . 1 . . . . Assimilate 2 | . . . 1 . . . . 1 . . . . . . . . . Botnet 8 | . 1 . 2 . . . 3 1 . . . . 1 . . . . Operators 2 | . . . 1 . . . . 1 . . . . . . . . . Fabricators . | . . . . . . . . . . . . . . . . . . Repair Stations 1 | . . . . . . . . 1 . . . . . . . . . Mechanics 1 | . . . . . . . . 1 . . . . . . . . . Recycling Units 1 | . 1 . . . . . . . . . . . . . . . . Tunnel 1 | . 1 . . . . . . . . . . . . . . . . Scanalyzers . | . . . . . . . . . . . . . . . . . . Garrison Access . | . . . . . . . . . . . . . . . . . . Data Cores Recovered . | . . . . . . . . . . . . . . . . . . Used . | . . . . . . . . . . . . . . . . . . Hacking Detections 25 | . 3 . 5 . . 1 5 7 . . . . 4 . . . . Full Trace Events 6 | . 1 . . . . . 2 2 . . . . 1 . . . . Feedback Events . | . . . . . . . . . . . . . . . . . . Feedback Blocked . | . . . . . . . . . . . . . . . . . . Robot Schematics Acquired 8 | . . . . . . . . . . . 5 . . . . 3 . Robots Built . | . . . . . . . . . . . . . . . . . . Authchips . | . . . . . . . . . . . . . . . . . . Time . | . . . . . . . . . . . . . . . . . . Total Robot Build Rating . | . . . . . . . . . . . . . . . . . . Part Schematics Acquired 27 | . . . . . . . 3 . . . 10 . . . . 14 . Parts Built 2 | . . . . . . . . 2 . . . . . . . . . Authchips . | . . . . . . . . . . . . . . . . . . Time 117 | . . . . . . . . 117 . . . . . . . . . Total Part Build Rating 14 | . . . . . . . . 14 . . . . . . . . . Part Studies Acquired 2 | . . . 1 . . . . 1 . . . . . . . . . Parts Repaired 2 | . . . 1 . . . . . . . . . 1 . . . . Time 112 | . . . 32 . . . . . . . . . 80 . . . . Parts Recycled . | . . . . . . . . . . . . . . . . . . Recycled Matter 6 | . 6 . . . . . . . . . . . . . . . . Retrieved Matter . | . . . . . . . . . . . . . . . . . . Retrieved Components 3 | . . . . . . . . 1 . . . . 2 . . . . Parts Scanalyzed 2 | . . . . . . . 2 . . . . . . . . . . Part Schematics Acquired 1 | . . . . . . . 1 . . . . . . . . . . Parts Damaged . | . . . . . . . . . . . . . . . . . . Bothacking | -11 -10 -10 -9 -9 -9 -8 -8 -7 -7 -7 -7 -6 -6 -6 -6 -6 -6 ------------ Run | Yrd Mat Min Mat Min Exi Min Mat Fac Low Low Dat Pro Fac Low Low Zio Dee Used RIF Installer . | . . . . . . . . . . . . . . . . . . Robots Hacked 4 | . . . . . 4 . . . . . . . . . . . . Non-combat 3 | . . . . . 3 . . . . . . . . . . . . Combat 1 | . . . . . 1 . . . . . . . . . . . . Robot Hacks Applied 5 | . . . . . 5 . . . . . . . . . . . . parse_system 5 | . . . . . 5 . . . . . . . . . . . . Relay Couplers Released . | . . . . . . . . . . . . . . . . . . Fabnet Peak Effective % . | . . . . . . . . . . . . . . . . . . Robots Rewired 2 | . . . . . . . . . . . . . . . 2 . . Allies Hacked . | . . . . . . . . . . . . . . . . . . Hacks Repelled . | . . . . . . . . . . . . . . . . . . Allies | -11 -10 -10 -9 -9 -9 -8 -8 -7 -7 -7 -7 -6 -6 -6 -6 -6 -6 -------- Run | Yrd Mat Min Mat Min Exi Min Mat Fac Low Low Dat Pro Fac Low Low Zio Dee Total Allies 5 | . . . . . . . . 1 . . . . . . 2 2 . Largest Group 4 | . . . . . . . . 1 1 1 1 1 . . 2 4 . Highest-Rated Group 253 | . . . . . . . . 26 26 26 24 24 . . 61 253 . Highest-Rated Ally 96 | . . . . . . . . 26 26 26 24 24 . . 32 96 . Total Orders 4 | . . . . . . . . . 2 2 . . . . . . . STAY 2 | . . . . . . . . . 1 1 . . . . . . . FOLLOW 2 | . . . . . . . . . 1 1 . . . . . . . Ally Attacks 69 | . . . . . . . . . . . . . . . 11 58 . Total Damage 1391 | . . . . . . . . . . . . . . . 289 1102 . Kills 17 | . . . . . . . . . . . . . . . 1 16 . Allies Corrupted . | . . . . . . . . . . . . . . . . . . Allies Melted . | . . . . . . . . . . . . . . . . . . Intel | -11 -10 -10 -9 -9 -9 -8 -8 -7 -7 -7 -7 -6 -6 -6 -6 -6 -6 ------- Run | Yrd Mat Min Mat Min Exi Min Mat Fac Low Low Dat Pro Fac Low Low Zio Dee Active Infowar (turns) 9729 | . . . 228 . . . 627 769 863 906 115 1216 733 747 856 2072 597 Sensors 8644 | . . . . . . . . 545 863 906 115 1210 733 747 856 2072 597 Traps 1076 | . . . 228 . . . 626 222 . . . . . . . . . Triangulation 36 | . . . . . . . . . . . . . 36 . . . . Jamming 1876 | . . . . . . . 20 471 . . . 967 418 . . . . Robot Analysis Total 6 | . 3 . . . . 1 2 . . . . . . . . . . Derelict Logs Recovered 7 | . . 2 . . . . . . 1 1 . 1 . 1 1 . . Drone Launches . | . . . . . . . . . . . . . . . . . . Drone Recoveries . | . . . . . . . . . . . . . . . . . . Exploration | -11 -10 -10 -9 -9 -9 -8 -8 -7 -7 -7 -7 -6 -6 -6 -6 -6 -6 ------------- Run | Yrd Mat Min Mat Min Exi Min Mat Fac Low Low Dat Pro Fac Low Low Zio Dee Turns Passed 16439 | 62 450 794 1384 55 2818 106 847 769 863 906 115 1328 786 747 856 2072 1481 Spaces Moved 10657 | 58 317 590 689 56 1914 97 571 598 636 660 86 808 397 472 549 1350 809 Core 134 | 2 . . . . . . . . . . . . . . . . 132 Treads . | . . . . . . . . . . . . . . . . . . Legs . | . . . . . . . . . . . . . . . . . . Wheels 10388 | 56 317 590 689 56 1914 97 571 598 636 660 86 808 397 472 549 1350 542 Hover 135 | . . . . . . . . . . . . . . . . . 135 Flight . | . . . . . . . . . . . . . . . . . . Fastest Speed 50 | 50 90 105 100 100 85 105 80 100 130 115 130 115 115 145 145 145 50 Average Speed 125 | 88 97 105 102 100 105 105 106 112 130 130 130 135 142 145 145 146 159 Slowest Speed 400 | 100 105 115 105 100 115 105 120 130 130 145 130 145 145 145 145 160 400 Overloaded Moves . | . . . . . . . . . . . . . . . . . . Propulsion Burnouts . | . . . . . . . . . . . . . . . . . . Robots Hopped . | . . . . . . . . . . . . . . . . . . Potential Cave-ins . | . . . . . . . . . . . . . . . . . . Cave-ins Triggered . | . . . . . . . . . . . . . . . . . . Exploration Rate (%) 53 | 3 52 97 52 20 91 25 36 16 66 78 68 71 12 55 55 87 75 Regions Visited 17 Branch Regions 12 Pre-discovered Areas 5 | . 1 1 . . 1 . . . . . 1 1 . . . . . Known Exits Taken 11 | . . . 1 . . . 1 1 1 1 1 1 1 1 1 1 . Unknown Exits Taken 6 | 1 1 1 . 1 1 1 . . . . . . . . . . . Scrap Searched 16 | . . 1 . 2 . . . . 4 2 . 1 . 1 3 2 . Spaces Dug 105 | . . 9 . . . . . . . . . 48 2 . 32 14 . Terrain Destroyed 631 | . 86 67 52 . 28 . 12 1 3 79 . 157 8 35 45 34 24 Melee . | . . . . . . . . . . . . . . . . . . Projectile 28 | . . . . . 5 . . 1 2 3 . 4 3 3 . 4 3 AOE 590 | . 86 67 52 . 23 . 12 . . 74 . 151 . 31 45 30 19 Terrain Rammed . | . . . . . . . . . . . . . . . . . . Walls Destroyed . | . . . . . . . . . . . . . . . . . . Machines Disabled . | . . . . . . . . . . . . . . . . . . Actions | -11 -10 -10 -9 -9 -9 -8 -8 -7 -7 -7 -7 -6 -6 -6 -6 -6 -6 --------- Run | Yrd Mat Min Mat Min Exi Min Mat Fac Low Low Dat Pro Fac Low Low Zio Dee Total 12836 | 65 399 742 1325 55 2303 99 733 687 659 690 90 973 551 518 605 1411 931 Wait 1017 | . 1 114 516 . 46 . 57 47 9 5 . 88 82 3 19 4 26 Move 10640 | 57 316 589 688 55 1913 96 570 597 635 659 85 807 396 471 548 1349 809 Hop . | . . . . . . . . . . . . . . . . . . Pick Up 145 | 2 18 6 9 . 42 . 20 10 . 1 1 10 9 6 2 6 3 Fast Attach 58 | 6 3 . 5 . 5 . 5 3 1 3 1 3 3 2 1 3 14 Attach 66 | . 2 2 5 . 3 . 8 6 . 1 1 10 10 5 1 2 10 Detach 14 | . . . 2 . . . 2 3 . . . . 2 2 . . 3 Swap 94 | . 5 1 15 . 26 3 8 7 4 2 . 4 2 7 4 4 2 Drop 135 | . 5 6 12 . 44 . 12 8 1 3 2 12 4 6 5 10 5 Fire 592 | . 49 24 27 . 215 . 51 6 9 16 . 39 43 16 6 32 59 Melee 6 | . . . . . 5 . . . . . . . . . . 1 . Ram . | . . . . . . . . . . . . . . . . . . Kick . | . . . . . . . . . . . . . . . . . . Crush . | . . . . . . . . . . . . . . . . . . Escape Stasis . | . . . . . . . . . . . . . . . . . . Rewire 19 | . . . . . . . . . . . . . . . 19 . . Trap 50 | . . . 46 . 4 . . . . . . . . . . . . Miscellaneous . | . . . . . . . . . . . . . . . . . . Route ------- -11/Scrapyard -10/Materials (discovered 2 exits: *Mat / *Min) -10/Mines (discovered 2 exits: *Mat x2) -9/Materials (discovered 3 exits: *Mat / *Min x2) -9/Mines -9/Exiles (discovered 2 exits: *Min x2) -8/Mines -8/Materials (discovered 3 exits: *Fac x3) -7/Factory (discovered 4 exits: *Fac / Sto / *Low x2) -7/Lower Caves -7/Lower Caves (discovered 2 exits: *Fac / *Dat) -7/Data Miner -6/Proximity Caves -6/Factory (discovered 2 exits: *Low x2) -6/Lower Caves -6/Lower Caves -6/Zion (discovered 2 exits: *Dee / [*Pro]) -6/Deep Caves (discovered 1 exit: [*Pro]) History --------- Turn | Location | Event 29 | -11/Scrapyard | Discovered new exit (range 15) 63 | -11/Scrapyard | Entered Materials 208 | -10/Materials | Discovered new exit (range 15) 255 | -10/Materials | Discovered new exit (range 8) 307 | -10/Materials | Build established: Mutant 329 | -10/Materials | Central database locked down 513 | -10/Materials | Entered Mines 549 | -10/Mines | Learned Materials terminal intel 560 | -10/Mines | Learned Materials security intel 561 | -10/Mines | Met a Derelict bent on vengeance 598 | -10/Mines | Discovered new exit (range 7) 773 | -10/Mines | Met a Derelict who couldn't figure out how to use a Trap Extractor 1052 | -10/Mines | Learned location of Storage (-7) 1078 | -10/Mines | Core integrity fell below 50% 1286 | -10/Mines | Discovered new exit (range 11) 1307 | -10/Mines | Entered Materials 1307 | -9/Materials | Evolved 2 slots: Utility x2 1309 | -9/Materials | Loaded intel: 12 terminal locations 1716 | -9/Materials | Identified exit to Mines 1992 | -9/Materials | Discovered new exit (range 10) 2002 | -9/Materials | Central database locked down 2331 | -9/Materials | Repaired Hvy. Assault Rifle 2691 | -9/Materials | Entered Mines 2742 | -9/Mines | Deemed a non-threat by the Exiles lab entrance 2742 | -9/Mines | Discovered new exit (range 5) 2746 | -9/Mines | Entered Exiles 2759 | -9/Exiles | Discovered new exit (range 15) 2771 | -9/Exiles | Met 8R-AWN 2788 | -9/Exiles | Met EX-HEX 2881 | -9/Exiles | Met EX-DEC 2909 | -9/Exiles | Learned location of Zion (-6) 3043 | -9/Exiles | Warned about trapping Exiles lab 3402 | -9/Exiles | Met EX-BIN 3429 | -9/Exiles | Aligned with FarCom system 3430 | -9/Exiles | Given EX-Vault access code 3453 | -9/Exiles | Opened EX-Vault 3480 | -9/Exiles | Warned to stay clear of 0b10 Research branches 3573 | -9/Exiles | Attacked by the Exiles 3677 | -9/Exiles | Found 8R-AWN's Boregun 3679 | -9/Exiles | Found 8R-AWN's Boregun 3906 | -9/Exiles | Destroyed EX-DEC 4231 | -9/Exiles | Destroyed EX-HEX 4270 | -9/Exiles | Destroyed EX-BIN 4299 | -9/Exiles | Found Exp. Core Analyzer 4312 | -9/Exiles | Found System Purifier 4466 | -9/Exiles | Discovered new exit (range 14) 5419 | -9/Exiles | Destroyed 8R-AWN 5437 | -9/Exiles | Found 8R-AWN's Armor/EX 5439 | -9/Exiles | Found Corrupted Exp. Targeting Computer 5447 | -9/Exiles | Found Corrupted AS-neutralizer No. 17b 5456 | -9/Exiles | Found 8R-AWN's Armor/TH 5564 | -9/Exiles | Entered Mines 5655 | -8/Mines | Discovered new exit (range 9) 5669 | -8/Mines | System corruption reached 10% 5670 | -8/Mines | Entered Materials 5670 | -8/Materials | Evolved 2 slots: Utility x2 6154 | -8/Materials | Lost 3 parts (2u1w) 6345 | -8/Materials | Identified exit to Factory 6517 | -8/Materials | Entered Factory 6517 | -7/Factory | Evolved 2 slots: Utility x2 6526 | -7/Factory | Identified exit to Storage 6526 | -7/Factory | Identified exit to Lower Caves 6541 | -7/Factory | Discovered new exit (range 15) 6780 | -7/Factory | Fabricated Imp. Force Field (x2) 6867 | -7/Factory | Build established: Scavenger-Mutant 7286 | -7/Factory | Entered Lower Caves 7286 | -7/Lower Caves | Accompanied by 1 ally 7311 | -7/Lower Caves | Learned Factory stockpile data 7550 | -7/Lower Caves | Build established: Mutant 8079 | -7/Lower Caves | Discovered new exit (range 5) 8138 | -7/Lower Caves | Identified exit to Lower Caves 8149 | -7/Lower Caves | Entered another Lower Caves area 8149 | -7/Lower Caves | Accompanied by 1 ally 8150 | -7/Lower Caves | Encountered a Warlord checkpoint 8217 | -7/Lower Caves | Learned Factory machine intel 8289 | -7/Lower Caves | Found Alien Artifact 8289 | -7/Lower Caves | Identified Core Expander 8289 | -7/Lower Caves | Installed Core Expander, added new Power slot 8397 | -7/Lower Caves | Discovered new exit (range 6) 9020 | -7/Lower Caves | Discovered new exit (range 15) 9048 | -7/Lower Caves | Identified exit to Data Miner 9055 | -7/Lower Caves | Entered Data Miner 9055 | -7/Data Miner | Accompanied by 1 ally 9057 | -7/Data Miner | Discovered new exit (range 6) 9081 | -7/Data Miner | Met Data Miner 9103 | -7/Data Miner | Learned location of Section 7 (-2) 9103 | -7/Data Miner | Acquired the access code to Warlord's prototype stash 9121 | -7/Data Miner | Received God Mode back door access code from Data Miner 9169 | -7/Data Miner | Identified exit to Proximity Caves 9170 | -7/Data Miner | Entered Proximity Caves 9170 | -6/Proximity Caves | Accompanied by 1 ally 9375 | -6/Proximity Caves | Spotter reported a threat 9623 | -6/Proximity Caves | Build established: Scavenger-Mutant 10136 | -6/Proximity Caves | Discovered new exit (range 15) 10495 | -6/Proximity Caves | Identified exit to Factory 10498 | -6/Proximity Caves | Entered Factory 10498 | -6/Factory | Evolved 2 slots: Utility x2 10500 | -6/Factory | Loaded intel: 238 machine locations 10589 | -6/Factory | Identified exit to Lower Caves 10746 | -6/Factory | Lost 6 parts (1p1n2u2w) 10826 | -6/Factory | Incoming investigation squad redirected 11220 | -6/Factory | Repaired Cold Fusion Reactor 11284 | -6/Factory | Entered Lower Caves 11765 | -6/Lower Caves | Learned Factory stockpile data 12012 | -6/Lower Caves | Discovered new exit (range 12) 12026 | -6/Lower Caves | Identified exit to Lower Caves 12031 | -6/Lower Caves | Entered another Lower Caves area 12308 | -6/Lower Caves | Learned location of 1 exit from Factory 12336 | -6/Lower Caves | Encountered a Warlord checkpoint 12674 | -6/Lower Caves | Destroyed 7 combat bots 12826 | -6/Lower Caves | Discovered new exit (range 13) 12873 | -6/Lower Caves | Identified exit to Zion 12887 | -6/Lower Caves | Entered Zion 12887 | -6/Zion | Accompanied by 2 allies 12937 | -6/Zion | System corruption cleaned by Quarantine Array 13609 | -6/Zion | Discovered new exit (range 16) 13615 | -6/Zion | Given A8's code to call for help 14116 | -6/Zion | Enhanced Grunt warped into view, answering call for help 14118 | -6/Zion | Enhanced Grunt warped into view, answering call for help 14630 | -6/Zion | Met Imprinter 14681 | -6/Zion | Attacked by Zionites 14685 | -6/Zion | Allies destroyed Imprinter 14697 | -6/Zion | Extracted access codes from Imprinter's data core 14773 | -6/Zion | Found Prototype Device 14773 | -6/Zion | Identified Exp. Thermal Shield 14814 | -6/Zion | Lost 4 allies 14931 | -6/Zion | Opened final containment barrier to the Deep Caves 14952 | -6/Zion | Discovered new exit (range 5) 14955 | -6/Zion | Saw the warning signs outside the Deep Caves entrance 14957 | -6/Zion | Identified exit to Deep Caves 14959 | -6/Zion | Entered Deep Caves 14961 | -6/Deep Caves | Met 5H-AD0 15245 | -6/Deep Caves | Z-Facility disabled 15560 | -6/Deep Caves | Found Prototype Protection 15560 | -6/Deep Caves | Identified Zio. Weapon Casing 15610 | -6/Deep Caves | Found Zio. Weapon Casing 15619 | -6/Deep Caves | Found Zio. Weapon Casing 15743 | -6/Deep Caves | Discovered new exit (range 6) 15829 | -6/Deep Caves | Spotted AG-10619 15831 | -6/Deep Caves | Exposed GOLEM chamber 15832 | -6/Deep Caves | Triggered Deep Caves wall 15842 | -6/Deep Caves | Destroyed AG-10619 15892 | -6/Deep Caves | Spotted AS-49368 15894 | -6/Deep Caves | Spotted AG-75914 15898 | -6/Deep Caves | Destroyed 24 combat bots 15906 | -6/Deep Caves | Released all parts (7) 15909 | -6/Deep Caves | Core integrity fell below 50% 15935 | -6/Deep Caves | Lost 8 parts (2p1n4u1w) 16035 | -6/Deep Caves | Found Zio. Weapon Casing 16040 | -6/Deep Caves | Found Prototype Protection 16040 | -6/Deep Caves | Identified Zio. Heavy Carapace 16074 | -6/Deep Caves | Destroyed AG-75914 16084 | -6/Deep Caves | Found Zio. Weapon Casing 16425 | -6/Deep Caves | Core integrity fell below 20% 16433 | -6/Deep Caves | System corruption reached 10% 16440 | -6/Deep Caves | Destroyed by as-14077 with Assembled Gauss Rifle Last Messages --------------- 16426_ Slug penetrates Wall. 16427_ as-71757 system terminally corrupted. 16428_ System corrupted: Matter fused (-8). 16428_ Penetrated by Slug. 16429_ as-52204 released from Mobile Assembly Unit. 16429_ HV Slug penetrates Wall. 16430_ Zio. Glidesys I destroyed. 16431_ HV Slug penetrates Wall. 16432_ Penetrated by Slug. 16432_ Zio. Weapon Casing destroyed. 16432_ System corrupted by crushing effect (+5). 16432_ Penetrated by Slug. 16435_ Zio. Light DM Reactor destroyed. 16436_ Penetrated by Slug. 16437_ Zio. Weapon Casing destroyed. 16438_ Penetrated by Slug. 16438_ Critical hit (Burn: +80). 16440_ Penetrated by Slug. 16440_ 8R-AWN's Boregun destroyed. 16440_ Penetrated by Slug. Map ----- +----------------------------------------------------+ | ???????????????????????????????????????????? #? | | ???????????????????????????????????????????? ## | | ???????????????????????????????????????????? # | | ????????????????????????????????????????????? | | ?????????????????????????????????????????????# | | ??????????????????????????????????????######## | | ??????????????????????????????????##### | | ?????????????????????????????????## ## | | ?????????????? ?????????????????# # " | | ????????????? ?????????????????# | | ?????????????# ?????????????????# | | ?????????????# ?????????????????# ## # | | ??????????# ?????????????????# | | ????????# ?????????????????# | | ?????# ????????????????## ## | | #?????# ####?#?????????## ### | | ##????? ? ?????????# ##?## | | [ #????? ? ????###### ##???## | | [ [ #?????# #? #???# #?????# | | #?????# ?# #???# #### ##????# ## | | #?????# ??# #???# #??# ##??# ##? | | #?????# #??# #???# #??# #??# #?? | | #?????# #??# #??## ##?# #??### #?? | | #???### ##?# #??# #?##### ##???## ?? | | ##### ### #### ##### #????# ?? | | ## ## ## @ a ## #???? ? | | # aaaaa ###< # ###???? ? | | ] =] # a a a ####?########?????? | | !!!!!# a####?????????????????? | | []!!! a##?????#??????????????? | | /!!! ## a##??? #??????????????? ? | | ! ##A ## ###????????????? ?? | | = #"# ## #????????????? | | #### ### #????????????? | | ##??#####?# #?????????????? | | # # #?????????## #?????????????? | | ## ## ##??????????### ## #?????????????? | | ?# ####?????????????#####??### ##?????????????? | | #?# #???????????????????????????###??????????????? | | ???#?????????????????????????????????????????????? | | | | | | | | | | | | | | | | | | | | | +----------------------------------------------------+ Best States ------------- Heat Dissipation 64 Energy Generation 30 Energy Capacity 890 Matter Stores 300 Matter Capacity 300 Sight Range 16 Robot Scan Range 16 Terrain Scan Density 10 Jamming Range 16 Base Temperature (-) 100 Armor Coverage 3300 Resistance: KI 30 Resistance: TH 90 Resistance: EX 90 Power Shielding 66 Propulsion Shielding 66 Weapon Shielding 100 Weapon Cycling 30 Evasion (%) 53 Targeting Accuracy 12 Launcher Accuracy 40 Target Analysis 6 Core Analysis 8 Particle Charging 25 Offensive Hacking 10 Trap Extractor Capacity 6 Item Schematics ----------------- Huge Storage Unit | -8/Materials | Hacked Cryofiber Web | -8/Materials | Scanalyzed Arm. Wheel | -8/Materials | Hacked Combat Drone Bay | -7/Data Miner | Free Lgt. Regenerative Plating | -7/Data Miner | Free Cld. Cesium-ion Thruster | -7/Data Miner | Free Thermal Defense Suite | -7/Data Miner | Free Imp. Heavy Laser | -7/Data Miner | Free Arm. Medium Treads | -7/Data Miner | Free Adv. Drone Bay | -7/Data Miner | Free Adv. Plasma Cannon | -7/Data Miner | Free Adv. Cooling System | -7/Data Miner | Free Adv. Particle Charger | -7/Data Miner | Free Phase Cannon | -6/Zion | Archive Adv. Shield Generator | -6/Zion | Archive Hvy. Plasma Cannon | -6/Zion | Archive Imp. Thermal Shield | -6/Zion | Archive Imp. Trap Scanner | -6/Zion | Archive Hvy. Phase Cannon | -6/Zion | Archive Arm. Leg | -6/Zion | Archive Adv. Actuator Array | -6/Zion | Archive Antimatter Reactor | -6/Zion | Archive Lgt. Angular Momentum Engine | -6/Zion | Archive Imp. Component Analysis Suite | -6/Zion | Archive Imp. Medium Treads | -6/Zion | Archive Enh. Gauss Cannon | -6/Zion | Archive Imp. Focal Shield | -6/Zion | Archive Robot Schematics ------------------ L-41 Fighter | -7/Data Miner | Free Y-54 Guardian | -7/Data Miner | Free H-66 Slayer | -7/Data Miner | Free Y-64 Sentinel | -7/Data Miner | Free M-22 Extractor | -7/Data Miner | Free W-25 Informer | -6/Zion | Archive R-06 Scavenger | -6/Zion | Archive D-83 Annihilator | -6/Zion | Archive Fabricated ------------ Imp. Force Field | x2 | -7/Factory | Preloaded Repaired ---------- Hvy. Assault Rifle | 65% | -9/Materials Cold Fusion Reactor | 24% | -6/Factory Studied --------- Com. Wheel | -9/Materials | Hacked Wheel | -7/Factory | Hacked Alien Tech Used ----------------- Core Expander Achievements -------------- None Challenges ------------ None Game ------ Seed ZioniteTiamatPropulsion Manual? 0 Play Time 02:21:47 Cumulative 412.0 hours Start 2025.12.10 @ 13:08:30 End 2025.12.10 @ 16:04:06 Sessions 1 Manual Loads 0 Difficulty Rogue Special Mode None Game No. 410 Rogue 406 Adventurer 3 Explorer 1 Win Type - Total 5 Types 4/0/1/0/0/0/0/0/0/0 Lore% 86 Gallery% 80 Achievement% 69 Wizard Run 0 Options --------- Layout 0 ASCII 0 Keyboard 0 Movement Mouse Keybinds 0 Fullscreen 2 Font 18/SmallcapsGlow Map View 76x50 Zoom Use 0% Tactical HUD 1 Map Filters NONE Filters NONE Steam 1 RUN: ef343d6c-97d5-4e0f-bc61-f609f22c75eb